bitfinex/quotes_ETHUSD_20230119
["timestamp","ask_amount","ask_price","bid_price","bid_amount"]
[1674156830934,8.02792001,1549.3,1549.0,0.333066]
[1674156831146,8.02792001,1549.3,1549.2,3.0]
[1674156831520,11.02792001,1549.3,1549.2,3.0]
[1674156832564,20.7744976,1549.3,1549.0,0.066]
[1674156832772,3.0,1549.2,1549.1,3.0]
[1674156832985,17.98732976,1549.2,1549.1,3.0]
[1674156833237,18.05332976,1549.2,1549.1,3.0]
[1674156833858,19.55332976,1549.2,1549.1,3.0]
[1674156834079,22.84507735,1549.2,1548.9,0.066]
[1674156834261,19.36731,1549.0,1548.9,3.0]
[1674156834664,19.43331,1549.0,1548.9,3.0]
[1674156834781,0.542,1548.9,1548.7,0.066]
[1674156834992,0.542,1548.9,1548.4,6.45816]
[1674156834993,24.15657759,1548.8,1548.4,3.066]
[1674156835258,6.29174759,1548.7,1548.4,3.0]
[1674156835423,6.45744,1548.6,1548.5,1.12121186]
[1674156835633,0.066,1548.6,1548.5,5.62121186]
[1674156835857,0.4843,1548.7,1548.5,4.18721186]
[1674156836070,0.4843,1548.9,1548.5,4.53993305]
[1674156836358,6.94049,1548.9,1548.8,3.0]
[1674156836616,7.00649,1548.9,1548.8,3.0]
[1674156837214,10.00649,1548.9,1548.8,3.0]
[1674156837933,14.52063308,1548.9,1548.6,0.066]
[1674156838173,6.29174759,1548.8,1548.5,1.12121186]
[1674156838356,12.91404,1548.7,1548.5,1.12121186]
[1674156838568,3.0,1548.6,1548.5,1.12121186]
[1674156840085,22.35306159,1548.6,1548.5,1.12121186]
[1674156840302,22.90346159,1548.6,1548.5,1.12121186]
[1674156844057,34.26739402,1548.6,1548.5,1.12121186]
[1674156844271,34.49739402,1548.6,1548.5,1.12121186]
[1674156844816,22.06039402,1548.6,1548.5,1.12121186]
[1674156845028,19.75702759,1548.6,1548.5,1.12121186]
[1674156845921,0.066,1548.6,1548.5,1.12121186]
[1674156846169,9.09995243,1548.7,1548.5,1.12121186]
[1674156846170,0.066,1548.7,1548.5,1.12121186]
[1674156846444,6.45679,1548.8,1548.6,3.0]
[1674156846445,6.52279,1548.8,1548.6,3.0]
[1674156847326,8.466341,1548.8,1548.6,3.0]
[1674156848345,0.066,1548.8,1548.6,3.0]
[1674156848554,0.066,1548.9,1548.6,3.0]
[1674156848765,6.94009,1549.0,1548.6,6.45733]
[1674156848766,0.066,1549.0,1548.6,6.45733]
[1674156848976,6.45569,1549.1,1548.8,3.0]
[1674156848977,0.066,1549.1,1548.8,3.0]
[1674156849208,0.066,1549.2,1548.7,14.47941]
[1674156849439,14.96674001,1549.3,1548.7,12.97941]
[1674156849611,1.57300001,1549.3,1549.1,3.0]
[1674156849820,1.50700001,1549.3,1549.1,3.0]
[1674156851335,4.7987476,1549.3,1549.1,3.0]
[1674156851503,3.0,1549.2,1549.1,3.0]
[1674156851717,4.42533476,1549.2,1549.1,3.0]
[1674156852055,4.42533476,1549.2,1549.0,3.0]
[1674156852056,14.17210235,1549.2,1549.0,3.0]
[1674156852228,3.77594759,1549.1,1548.8,3.066]
[1674156852431,12.74751759,1549.0,1548.7,0.066]
[1674156852698,12.74751759,1549.0,1548.6,3.066]
[1674156852699,3.29174759,1548.9,1548.6,3.066]
[1674156853017,3.29174759,1548.9,1548.6,3.0]
[1674156853018,9.74811759,1548.9,1548.6,3.0]
[1674156853228,0.5503,1548.9,1548.6,3.41872119]
[1674156853442,0.066,1549.0,1548.8,3.0]
[1674156853588,3.0,1549.0,1548.8,3.0]
[1674156854963,0.066,1549.1,1548.8,3.0]
[1674156855285,8.02760001,1549.3,1549.0,3.0]
[1674156855499,8.51170001,1549.3,1548.8,0.066]
[1674156855710,8.02760001,1549.3,1549.2,3.0]
[1674156856580,11.02760001,1549.3,1549.0,0.066]
[1674156856769,7.39450759,1549.2,1549.0,3.0]
[1674156856981,13.91544759,1549.2,1549.0,3.0]
[1674156858273,20.37055759,1549.2,1549.0,3.0]
[1674156859123,3.29174759,1549.1,1549.0,3.0]
[1674156859335,21.23952335,1549.1,1549.0,3.0]
[1674156859543,21.30552335,1549.1,1548.8,0.066]
[1674156859734,6.29174759,1549.0,1548.6,8.6042]
[1674156860071,16.83341235,1548.9,1548.6,0.066]
[1674156860294,6.29174759,1548.8,1548.5,4.12121186]
[1674156860449,6.45702,1548.7,1548.5,1.12121186]
[1674156860668,6.52302,1548.7,1548.6,3.0]
[1674156861066,0.066,1548.7,1548.6,3.0]
[1674156861234,3.066,1548.8,1548.6,3.0]
[1674156861452,3.0,1548.8,1548.6,3.0]
[1674156862669,9.45665,1548.8,1548.6,3.0]
[1674156862908,18.222865,1548.8,1548.6,3.0]
[1674156863561,18.707165,1548.8,1548.6,3.0]
[1674156864056,3.5503,1548.8,1548.6,3.0]
[1674156864225,6.52247,1548.9,1548.6,3.0]
[1674156864433,6.52247,1548.9,1548.8,3.0]
[1674156864714,9.52247,1548.9,1548.8,3.0]
[1674156866855,21.56252659,1548.9,1548.6,0.066]
[1674156867062,21.56252659,1548.9,1548.6,3.0]
[1674156867340,21.56252659,1548.9,1548.5,1.18721186]
[1674156867341,2.0491594,1548.6,1548.5,1.18721186]
[1674156867485,17.9640394,1548.6,1548.5,1.12121186]
[1674156867695,20.17206134,1548.6,1548.5,1.12121186]
[1674156868117,23.46380893,1548.6,1548.5,1.12121186]
[1674156868778,24.12074136,1548.6,1548.5,1.12121186]
[1674156871559,24.60514136,1548.6,1548.5,1.12121186]
[1674156872242,24.60514136,1548.6,1548.5,1.11891663]
[1674156874722,24.83514136,1548.6,1548.5,1.11891663]
[1674156875296,26.83914136,1548.6,1548.5,1.11891663]
[1674156878550,37.54614136,1548.6,1548.5,6.63e-06]
[1674156878753,37.54614136,1548.6,1548.2,3.0]
[1674156879027,10.11574759,1548.4,1548.2,3.0]
[1674156879219,32.35650759,1548.3,1548.2,3.0]
[1674156879556,32.42250759,1548.3,1548.1,0.04340543]
[1674156879742,3.29174759,1548.2,1548.1,0.04340543]
[1674156879950,9.45911,1548.2,1548.1,0.04340543]
[1674156880167,9.52511,1548.2,1548.1,0.04340543]
[1674156880337,19.27596759,1548.2,1548.1,0.04340543]
[1674156881290,19.50278361,1548.2,1548.1,0.04340543]
[1674156882051,20.64421604,1548.2,1548.1,0.04340543]
[1674156882273,24.68280864,1548.2,1548.1,0.04340543]
[1674156882480,37.39380864,1548.2,1548.1,0.04340543]
[1674156884287,37.39380864,1548.2,1548.0,0.0422026]
[1674156884520,15.72874759,1548.1,1548.0,0.0422026]
[1674156884674,38.17333759,1548.1,1548.0,0.0422026]
[1674156884866,44.86354146,1548.1,1548.0,2.6e-06]
[1674156886921,40.98054146,1548.1,1548.0,2.6e-06]
[1674156887108,44.86354146,1548.1,1548.0,2.6e-06]
[1674156889814,31.76960903,1548.1,1548.0,2.6e-06]
[1674156890079,22.73633759,1548.1,1548.0,2.6e-06]
[1674156891207,19.44459,1548.1,1548.0,2.6e-06]
[1674156891459,0.066,1548.1,1548.0,3.0000026]
[1674156891749,6.52511,1548.2,1548.0,3.0000026]
[1674156891934,12.98448,1548.2,1548.0,3.0000026]
[1674156892523,3.0,1548.1,1548.0,3.0000026]
[1674156893007,9.45953,1548.1,1548.0,3.0000026]
[1674156893215,9.52553,1548.1,1548.0,3.0000026]
[1674156893808,3.066,1548.1,1548.0,3.0000026]
[1674156894020,0.066,1548.2,1548.0,3.3052174]
[1674156894352,6.77472,1548.3,1548.0,3.3052174]
[1674156894690,6.77472,1548.3,1548.2,3.0]
[1674156894900,13.23344,1548.3,1548.2,3.0]
[1674156895051,15.202612,1548.3,1548.2,3.0]
[1674156895377,18.49435959,1548.3,1548.2,3.0]
[1674156895598,21.49435959,1548.3,1548.2,3.0]
[1674156896455,19.52518759,1548.3,1548.2,3.0]
[1674156898833,16.23344,1548.3,1548.2,3.0]
[1674156899626,9.77472,1548.3,1548.2,3.0]
[1674156899794,3.316,1548.3,1548.2,3.0]
[1674156900170,3.25,1548.3,1548.2,3.0]
[1674156900366,0.066,1548.4,1548.2,3.3]
[1674156900578,0.056,1548.6,1548.2,18.22222]
[1674156900893,6.52276,1548.8,1548.5,3.0]
[1674156901078,9.81450759,1548.8,1548.7,3.0]
[1674156901286,16.27126759,1548.8,1548.7,3.0]
[1674156901962,19.27126759,1548.8,1548.5,0.066]
[1674156902250,19.27126759,1548.8,1548.2,8.1456]
[1674156902251,19.37256,1548.6,1548.3,3.0]
[1674156902406,7.95827,1548.4,1548.3,3.0]
[1674156902615,14.48254,1548.4,1548.3,3.0]
[1674156903458,23.20913102,1548.4,1548.1,0.014]
[1674156903670,18.37008002,1548.3,1548.1,0.052]
[1674156903935,30.96519559,1548.2,1548.1,0.052]
[1674156904126,34.91812802,1548.2,1548.1,0.052]
[1674156904338,35.40262802,1548.2,1548.1,0.052]
[1674156905087,1.5,1548.1,1547.9,0.05214541]
[1674156905244,31.32850759,1548.0,1547.9,0.05214541]
[1674156905455,31.39450759,1548.0,1547.9,0.05214541]
[1674156905702,35.05144002,1548.0,1547.9,0.05214541]
[1674156906360,35.76594002,1548.0,1547.9,0.05214541]
[1674156906733,46.47294002,1548.0,1547.9,0.05214541]
[1674156907603,48.47694002,1548.0,1547.9,0.05214541]
[1674156909867,49.14905834,1548.0,1547.8,0.057104]
[1674156910078,22.56104159,1547.9,1547.8,0.057104]
[1674156910313,35.54776159,1547.9,1547.8,0.057104]
[1674156910521,36.20469402,1547.9,1547.8,0.057104]
[1674156912952,36.45469402,1547.9,1547.8,0.057104]
[1674156913997,25.74769402,1547.9,1547.8,0.057104]
[1674156914745,25.26309402,1547.9,1547.8,0.057104]
[1674156917389,25.19809402,1547.9,1547.8,0.057104]
[1674156917839,35.90509402,1547.9,1547.8,0.057104]
[1674156919593,36.57721234,1547.9,1547.8,0.057104]
[1674156919820,36.80039501,1547.9,1547.8,0.057104]
[1674156920010,35.90509402,1547.9,1547.8,0.057104]
[1674156920435,25.19809402,1547.9,1547.8,0.057104]
[1674156925493,35.90509402,1547.9,1547.8,0.057104]
[1674156925983,25.19809402,1547.9,1547.8,0.057104]
[1674156928513,25.68269402,1547.9,1547.8,0.057104]
[1674156928874,25.19809402,1547.9,1547.8,0.057104]
[1674156930884,25.87021234,1547.9,1547.8,0.057104]
[1674156931205,25.19809402,1547.9,1547.8,0.057104]
[1674156931357,27.71558123,1547.8,1547.7,0.13521782]
[1674156931568,38.02857409,1547.8,1547.7,0.13521782]
[1674156931775,38.68550652,1547.8,1547.7,0.13521782]
[1674156932359,36.76550652,1547.8,1547.7,0.13521782]
[1674156932571,36.20441232,1547.8,1547.7,0.13521782]
[1674156932931,36.20441232,1547.8,1547.7,0.66550298]
[1674156933407,36.20441232,1547.8,1547.7,0.30381043]
[1674156933561,36.44173281,1547.8,1547.7,0.30381043]
[1674156933772,36.44174961,1547.8,1547.7,0.30381043]
[1674156934015,37.45518701,1547.8,1547.7,0.30381043]
[1674156934230,36.7796707,1547.8,1547.5,0.15805197]
[1674156934436,30.46018759,1547.6,1547.5,0.15805197]
[1674156934651,33.52618759,1547.6,1547.5,0.15805197]
[1674156934845,34.41312002,1547.6,1547.5,0.15805197]
[1674156935033,34.66312002,1547.6,1547.5,0.15805197]
[1674156935246,40.0256362,1547.6,1547.5,0.15805197]
[1674156935882,50.7326362,1547.6,1547.5,0.15805197]
[1674156936310,51.2173362,1547.6,1547.5,0.15805197]
[1674156936563,51.8928593,1547.6,1547.5,0.15805197]
[1674156937418,51.2173362,1547.6,1547.3,0.05214541]
[1674156937571,41.16954759,1547.4,1547.3,0.05214541]
[1674156937958,44.46554759,1547.4,1547.3,0.05214541]
[1674156938119,41.23948002,1547.4,1547.3,0.05214541]
[1674156938458,33.59448002,1547.4,1547.3,0.05214541]
[1674156938605,37.60625661,1547.4,1547.3,0.05214541]
[1674156939759,49.64425661,1547.4,1547.3,0.05214541]
[1674156939969,45.76125661,1547.4,1547.3,5.41e-06]
[1674156940185,42.82025661,1547.4,1547.3,5.41e-06]
[1674156941039,49.64425661,1547.4,1547.3,5.41e-06]
[1674156941401,24.94128243,1547.4,1547.3,5.41e-06]
[1674156941719,22.95335,1547.4,1547.3,5.41e-06]
[1674156942023,26.24509759,1547.4,1547.3,5.41e-06]
[1674156942237,26.90203002,1547.4,1547.3,5.41e-06]
[1674156943350,27.13203002,1547.4,1547.3,5.41e-06]
[1674156943603,30.49147202,1547.4,1547.3,5.41e-06]
[1674156944197,45.01569512,1547.4,1547.3,5.41e-06]
[1674156944423,45.29234629,1547.4,1547.3,5.41e-06]
[1674156945245,46.30581845,1547.4,1547.1,1.16962011]
[1674156945456,15.32974759,1547.2,1547.1,1.16962011]
[1674156945704,44.47886759,1547.2,1547.1,1.16962011]
[1674156946079,45.13580002,1547.2,1547.1,1.16962011]
[1674156946407,45.63580002,1547.2,1547.1,1.16962011]
[1674156946775,33.36780002,1547.2,1547.1,1.16962011]
[1674156947296,37.98233821,1547.2,1547.1,1.16962011]
[1674156948344,13.49256,1547.2,1547.1,1.16962011]
[1674156948552,7.02928,1547.2,1547.1,1.16962011]
[1674156949655,10.02928,1547.2,1547.1,1.16962011]
[1674156952301,19.78430759,1547.2,1547.1,1.16962011]
[1674156954595,0.566,1547.2,1547.1,1.16962011]
[1674156954803,0.5,1547.2,1547.1,17.1101378]
[1674156955076,0.5,1547.2,1547.1,18.6761378]
[1674156955893,0.5,1547.2,1547.1,20.92053445]
[1674156956110,0.5,1547.2,1547.1,19.79833764]
[1674156956507,6.52724,1547.7,1547.1,19.79833764]
[1674156956508,6.52724,1547.7,1547.3,1.5]
[1674156956712,6.52724,1547.7,1547.4,0.15]
[1674156956920,0.066,1547.7,1547.6,3.0]
[1674156957170,0.066,1548.0,1547.6,4.334]
[1674156957373,0.25,1547.7,1547.6,4.334]
[1674156957563,0.25,1547.7,1547.6,20.54896759]
[1674156957787,0.21281449,1548.2,1547.6,20.99433478]
[1674156958113,0.14681449,1548.2,1548.1,4.334]
[1674156958978,0.14681449,1548.2,1548.1,5.834]
[1674156959127,0.14681449,1548.2,1548.1,4.4]
[1674156959494,0.14681449,1548.2,1548.1,4.334]
[1674156960065,0.14681449,1548.2,1548.1,5.834]
[1674156960275,0.14681449,1548.2,1548.1,5.9]
[1674156960755,0.39681449,1548.2,1548.1,4.4]
[1674156960969,0.39681449,1548.2,1548.1,4.334]
[1674156961279,0.39681449,1548.2,1548.1,17.25306]
[1674156961487,0.39681449,1548.2,1548.1,17.31906]
[1674156961694,0.39681449,1548.2,1548.1,26.40538633]
[1674156962526,0.39681449,1548.2,1548.1,18.64206]
[1674156962856,0.39681449,1548.2,1548.1,4.389]
[1674156963010,0.39681449,1548.2,1548.1,4.323]
[1674156963655,0.39681449,1548.2,1548.1,3.0]
[1674156966374,0.48493594,1548.2,1548.1,3.0]
[1674156966580,3.48493594,1548.2,1548.1,3.0]
[1674156967041,6.77668353,1548.2,1548.1,3.0]
[1674156967246,14.18872596,1548.2,1548.1,3.0]
[1674156967421,4.20786837,1548.2,1548.1,3.0]
[1674156967737,3.39681449,1548.2,1548.1,3.0]
[1674156967950,0.39681449,1548.2,1548.1,3.0]
[1674156970525,0.39681449,1548.2,1548.1,12.29153]
[1674156970684,0.39681449,1548.2,1548.1,10.85753]
[1674156971520,0.39681449,1548.2,1548.1,12.35753]
[1674156972086,0.00081449,1548.2,1548.1,27.68290517]
[1674156972256,0.00081449,1548.2,1548.1,30.91290517]
[1674156972952,0.00081449,1548.2,1548.1,36.08090759]
[1674156973100,0.00081449,1548.2,1548.1,36.31090759]
[1674156974267,0.00081449,1548.2,1548.1,25.34080759]
[1674156974729,0.00081449,1548.2,1548.1,26.67480759]
[1674156974934,0.00081449,1548.2,1548.1,30.90996522]
[1674156975150,0.30574711,1548.4,1548.3,1.5]
[1674156975311,0.30574711,1548.4,1548.3,13.68374759]
[1674156975520,0.1554821,1548.6,1548.4,8.324]
[1674156975886,0.1554821,1548.6,1548.5,24.22932759]
[1674156976105,0.4054821,1548.6,1548.5,27.29532759]
[1674156976621,0.4054821,1548.6,1548.5,31.52637024]
[1674156976777,0.4054821,1548.6,1548.5,27.29532759]
[1674156976995,0.4054821,1548.6,1548.5,28.61832759]
[1674156977193,0.4054821,1548.6,1548.5,32.84773951]
[1674156977887,0.3554821,1548.6,1548.5,32.84773951]
[1674156978240,0.0004821,1548.6,1548.5,32.84773951]
[1674156978505,0.1647706,1548.9,1548.6,6.005]
[1674156978661,0.1647706,1548.9,1548.8,5.94774759]
[1674156978875,0.1554821,1549.0,1548.9,1.5]
[1674156979130,0.1647706,1549.1,1549.0,1.5]
[1674156979400,0.16861305,1549.2,1549.1,14.41072]
[1674156979615,0.16861305,1549.2,1549.1,20.80446759]
[1674156979879,0.16861305,1549.2,1549.1,19.07446759]
[1674156980068,0.16861305,1549.2,1549.1,19.30446759]
[1674156980286,0.16861305,1549.2,1549.1,17.74046759]
[1674156980475,0.16861305,1549.2,1549.1,19.24046759]
[1674156980828,0.16861305,1549.2,1549.1,20.79346759]
[1674156981311,0.16861305,1549.2,1549.1,25.01153689]
[1674156981525,0.17962812,1549.5,1549.3,6.824]
[1674156981717,0.17962812,1549.5,1549.4,6.18974759]
[1674156981920,0.17962812,1549.5,1549.4,24.05407759]
[1674156982157,0.17962812,1549.5,1549.4,6.52011]
[1674156982997,0.17962812,1549.5,1549.4,9.52011]
[1674156983738,0.17962812,1549.5,1549.4,19.26596759]
[1674156983955,0.17962812,1549.5,1549.4,20.59696759]
[1674156984491,0.17962812,1549.5,1549.4,20.82696759]
[1674156985325,0.17962812,1549.5,1549.4,25.04301022]
[1674156985955,0.17962812,1549.5,1549.4,20.82696759]
[1674156986208,0.17962812,1549.5,1549.4,20.59696759]
[1674156986428,0.12962812,1549.5,1549.4,20.59696759]
[1674156988083,0.12962812,1549.5,1549.4,3.066]
[1674156988306,0.12962812,1549.5,1549.4,3.0]
[1674156989160,2.66072812,1549.5,1549.4,3.0]
[1674156989306,2.66072812,1549.5,1549.3,0.066]
[1674156989307,2.17662812,1549.5,1549.3,0.066]
[1674156989730,0.75017281,1549.4,1549.3,3.0]
[1674156989899,3.4841,1549.4,1549.3,3.0]
[1674156990501,0.4841,1549.4,1549.3,3.0]
[1674156991209,0.4841,1549.4,1549.1,0.066]
[1674156991210,7.33078002,1549.4,1549.1,0.066]
[1674156991417,9.05942093,1549.2,1549.0,3.0]
[1674156991628,12.41716852,1549.2,1549.0,3.0]
[1674156991876,6.93956,1549.1,1549.0,3.0]
[1674156992087,0.5502,1549.1,1549.0,3.0]
[1674156992301,0.4842,1549.1,1549.0,3.0]
[1674156992941,1.58833093,1549.2,1549.0,6.59174759]
[1674156993165,1.10413093,1549.2,1549.1,3.29174759]
[1674156993372,1.10413093,1549.2,1549.1,11.24710759]
[1674156993593,1.10413093,1549.2,1549.1,0.066]
[1674156993900,1.10413093,1549.2,1549.0,3.066]
[1674156994062,1.10413093,1549.2,1549.0,3.0]
[1674156997380,2.60413093,1549.2,1549.0,3.0]
[1674156997555,2.60413093,1549.2,1548.8,0.066]
[1674156997556,1.321,1549.1,1548.8,3.066]
[1674156997766,1.5,1549.0,1548.8,3.0]
[1674156998013,7.95592,1549.0,1548.8,3.0]
[1674156998227,12.97784,1549.0,1548.8,3.0]
[1674156998396,15.42774231,1549.0,1548.8,3.0]
[1674156999027,16.49974231,1549.0,1548.8,3.0]
[1674156999805,16.49974231,1549.0,1548.7,0.066]
[1674156999806,5.95074759,1548.9,1548.7,0.066]
[1674157000021,5.95074759,1548.9,1548.6,3.002]
[1674157000022,26.99257759,1548.8,1548.6,0.002]
[1674157000172,26.99257759,1548.8,1548.6,3.002]
[1674157000173,4.61474759,1548.7,1548.6,3.002]
[1674157000377,22.51308759,1548.7,1548.6,3.002]
[1674157000584,22.51308759,1548.7,1548.6,0.002]
[1674157000585,25.05351907,1548.7,1548.6,0.002]
[1674157000903,25.28351907,1548.7,1548.3,0.05123552]
[1674157001139,6.0500995,1548.6,1548.3,0.05123552]
[1674157001320,15.74372,1548.5,1548.3,3.05123552]
[1674157001532,14.79412,1548.5,1548.3,3.05123552]
[1674157002540,13.46612,1548.5,1548.3,3.05123552]
[1674157003066,4.61474759,1548.4,1548.3,3.05123552]
[1674157003232,17.76128759,1548.4,1548.3,3.05123552]
[1674157003586,17.82728759,1548.4,1548.3,3.05123552]
[1674157003988,21.96862002,1548.4,1548.3,0.05123552]
[1674157004155,25.64202712,1548.4,1548.3,0.05123552]
[1674157004502,22.12027953,1548.4,1548.3,0.05123552]
[1674157006317,17.12387243,1548.4,1548.3,0.05123552]
[1674157007136,17.12387243,1548.4,1548.3,0.00123552]
[1674157007999,17.12387243,1548.4,1548.3,3.00123552]
[1674157008000,0.066,1548.4,1548.3,3.00123552]
[1674157008155,6.52386,1548.5,1548.3,3.00123552]
[1674157008373,7.00826,1548.5,1548.3,3.00123552]
[1674157008624,13.46612,1548.5,1548.3,3.00123552]
[1674157008785,14.812711,1548.5,1548.3,3.00123552]
[1674157009211,14.812711,1548.5,1548.3,0.00123552]
[1674157009212,9.11274759,1548.4,1548.3,0.00123552]
[1674157009430,15.63701759,1548.4,1548.3,0.00123552]
[1674157009680,20.11241612,1548.4,1548.3,0.00123552]
[1674157009988,18.61241612,1548.4,1548.3,0.00123552]
[1674157010201,25.07068612,1548.4,1548.3,0.00123552]
[1674157013902,30.27468612,1548.4,1548.3,0.00123552]
[1674157014114,37.09868612,1548.4,1548.3,0.00123552]
[1674157014329,37.09508155,1548.4,1548.3,0.00123552]
[1674157015264,35.77408155,1548.4,1548.3,0.00123552]
[1674157015894,25.83844,1548.1,1547.8,3.0]
[1674157016116,19.38108,1547.9,1547.8,3.0]
[1674157016264,19.44708,1547.9,1547.6,3.066]
[1674157016473,19.44708,1547.9,1547.5,1.77219094]
[1674157016731,19.44708,1547.9,1547.5,1.70619094]
[1674157017139,19.44708,1547.9,1547.8,3.0]
[1674157018839,19.44708,1547.9,1547.8,3.36651901]
[1674157020300,22.73882759,1547.9,1547.8,0.36651901]
[1674157020637,22.73882759,1547.9,1547.8,3.36651901]
[1674157020970,25.95873435,1547.9,1547.8,3.36651901]
[1674157021334,19.44708,1547.9,1547.8,3.36651901]
[1674157021918,12.98672,1547.9,1547.8,3.0]
[1674157022072,0.066,1547.9,1547.8,3.0]
[1674157022283,0.066,1548.0,1547.8,3.0]
[1674157022510,12.91959,1548.1,1547.9,0.3]
[1674157022511,12.98559,1548.1,1547.9,0.3]
[1674157022916,12.98559,1548.1,1547.7,5.64400824]
[1674157023125,12.98559,1548.1,1547.7,1.397]
[1674157023350,12.98559,1548.1,1547.7,1.331]
[1674157023590,12.98559,1548.1,1548.0,3.0]
[1674157024616,13.47009,1548.1,1548.0,3.0]
[1674157024840,16.10905145,1548.1,1548.0,3.0]
[1674157025180,15.62455145,1548.1,1548.0,3.0]
[1674157025483,15.62455145,1548.1,1547.8,0.066]
[1674157025702,12.98559,1548.1,1547.7,3.0]
[1674157025874,12.98559,1548.1,1547.6,0.066]
[1674157026066,12.98559,1548.1,1548.0,3.0]
[1674157026442,18.98199228,1548.1,1547.8,0.066]
[1674157026600,3.52174759,1548.0,1547.7,3.0]
[1674157026802,19.38108,1547.9,1547.5,0.27219094]
[1674157027004,19.44708,1547.9,1547.5,0.20619094]
[1674157027902,19.44708,1547.9,1547.5,1.70619094]
[1674157028218,19.44708,1547.9,1547.8,3.0]
[1674157029844,12.98672,1547.9,1547.8,3.0]
[1674157030055,0.066,1547.9,1547.8,3.3]
[1674157030261,6.45978,1548.1,1547.9,1.5]
[1674157030262,0.066,1548.1,1547.9,1.5]
[1674157030533,0.00076448,1548.2,1548.0,3.0]
[1674157030720,0.00076448,1548.2,1548.0,3.15]
[1674157031630,0.00076448,1548.2,1548.1,4.62574759]
[1674157031840,0.00076448,1548.2,1548.1,6.12574759]
[1674157032108,0.00076448,1548.2,1548.1,12.65127759]
[1674157032326,0.00076448,1548.2,1548.1,13.33089647]
[1674157033261,0.00076448,1548.2,1548.1,12.65127759]
[1674157033787,0.00076448,1548.2,1548.1,1.4]
[1674157034015,0.00076448,1548.2,1548.0,3.066]
[1674157034149,0.00076448,1548.2,1548.0,3.0]
[1674157034362,0.00076448,1548.2,1548.0,4.5]
[1674157034572,0.00076448,1548.2,1548.1,0.45]
[1674157035060,0.00076448,1548.2,1548.1,5.24174759]
[1674157035308,0.00076448,1548.2,1548.1,13.10127759]
[1674157035992,0.00076448,1548.2,1548.1,5.14174759]
[1674157036409,0.00076448,1548.2,1548.1,0.516]
[1674157036621,0.00076448,1548.2,1548.1,0.45]
[1674157036861,6.45987448,1548.2,1548.0,3.0]
[1674157037049,6.52587448,1548.2,1548.0,3.0]
[1674157038720,12.98498448,1548.2,1548.0,3.0]
[1674157039951,6.52587448,1548.2,1548.0,3.0]
[1674157040151,6.52587448,1548.2,1548.0,3.3066]
[1674157041876,0.06676448,1548.2,1548.1,1.334]
[1674157042087,0.00076448,1548.2,1548.1,1.334]
[1674157043256,0.00076448,1548.2,1548.0,7.99434759]
[1674157043472,0.00076448,1548.2,1548.0,7.68774759]
[1674157043724,0.00076448,1548.2,1548.0,4.396]
[1674157043899,6.45988448,1548.2,1548.0,3.0]
[1674157044247,6.52588448,1548.2,1548.0,3.0]
[1674157044402,6.52588448,1548.2,1548.0,3.4566]
[1674157044403,6.52595448,1548.2,1548.0,3.4566]
[1674157044617,6.52595448,1548.2,1548.0,3.0]
[1674157047922,12.98514448,1548.2,1548.0,2.95]
[1674157049396,13.66066758,1548.2,1548.0,2.95]
[1674157049706,3.35056676,1548.1,1548.0,2.95]
[1674157049874,14.76962676,1548.1,1548.0,2.95]
[1674157050095,14.83562676,1548.1,1548.0,2.95]
[1674157055289,13.46956,1548.1,1548.0,2.95]
[1674157056106,12.98506,1548.1,1548.0,2.95]
[1674157058379,12.98506,1548.1,1547.8,3.016]
[1674157058643,12.98506,1548.1,1547.8,2.95]
[1674157059027,12.98506,1548.1,1547.6,0.066]
[1674157059269,12.98506,1548.1,1548.0,2.95]
[1674157059270,15.82412684,1548.1,1548.0,2.95]
[1674157060481,15.82412684,1548.1,1547.8,0.066]
[1674157060693,15.82412684,1548.1,1547.7,2.95]
[1674157060973,16.49964994,1548.1,1547.7,2.95]
[1674157061110,2.80998809,1548.0,1547.7,2.95]
[1674157061325,19.38108,1547.9,1547.7,2.95]
[1674157061586,19.44708,1547.9,1547.7,2.95]
[1674157065424,6.52636,1547.9,1547.7,2.95]
[1674157065634,0.066,1547.9,1547.7,4.281]
[1674157065878,7.01054,1548.0,1547.8,0.4281]
[1674157067318,7.01054,1548.0,1547.7,4.281]
[1674157067525,13.47058,1548.0,1547.7,2.95]
[1674157068009,13.47058,1548.0,1547.7,2.94790372]
[1674157069270,0.066,1548.0,1547.7,4.61974759]
[1674157069479,7.01003,1548.1,1547.9,2.94790372]
[1674157073612,7.6855531,1548.1,1547.9,2.94790372]
[1674157073877,14.1454931,1548.1,1547.9,2.94790372]
[1674157074457,13.46997,1548.1,1547.9,2.94790372]
[1674157075353,15.83052676,1548.1,1547.9,2.94790372]
[1674157076137,16.50604986,1548.1,1547.9,2.94790372]
[1674157076988,14.1454931,1548.1,1547.9,2.94790372]
[1674157078151,14.1454931,1548.1,1547.7,3.01390372]
[1674157078359,14.1454931,1548.1,1547.7,2.94790372]
[1674157078876,15.15896526,1548.1,1547.7,2.94790372]
[1674157079156,17.75450923,1548.1,1547.7,2.94790372]
[1674157079449,0.6755231,1548.0,1547.7,2.94790372]
[1674157079666,12.92072,1547.9,1547.7,2.94790372]
[1674157079818,12.98672,1547.9,1547.7,2.94790372]
[1674157082468,0.066,1547.9,1547.7,2.94790372]
[1674157082657,0.066,1548.0,1547.8,0.29479037]
[1674157082868,13.46987,1548.1,1547.8,0.29479037]
[1674157083129,12.98537,1548.1,1547.8,0.29479037]
[1674157083301,13.6608931,1548.1,1548.0,2.94790372]
[1674157085180,13.6608931,1548.1,1547.8,0.064]
[1674157085391,13.6608931,1548.1,1547.7,1.326]
[1674157085654,13.6608931,1548.1,1548.0,2.94790372]
[1674157086603,16.16072113,1548.1,1547.8,0.066]
[1674157086822,0.67744126,1548.0,1547.9,2.94790372]
[1674157086991,7.13738126,1548.0,1547.9,2.94790372]
[1674157087178,7.20338126,1548.0,1547.9,2.94790372]
[1674157087705,14.67679342,1548.0,1547.9,2.94790372]
[1674157087911,16.24662449,1548.0,1547.9,2.94790372]
[1674157088331,16.24662449,1548.0,1547.7,0.066]